Cogmind - Beta 16 --- EXPLORER MODE // 2025.12.26 @ 13:43:00 Player: K.K.Y. Result: Destroyed by R8-XYF(R) with Subdweller Beam Cannon Performance ------------- Evolutions (0) 0 Regions Visited (3) 600 Robots Destroyed (42) 210 Value Destroyed (1140) 1140 Prototype IDs (6) 120 Alien Tech Used (0) 0 Bonus (0) 0 TOTAL SCORE: 2070 Bonus ------- None Cogmind --------- Core Integrity 0/250 Matter 253/300 Energy 100/100 System Corruption 0% Temperature Cool (9) Movement Treading (490) Ox4 Location -10/Subcaves Parts ------- > --- POWER (1) -------- (None) > --- PROPULSION (2) --- Armored Treads > --- UTILITY (3) ------ Huge Storage Unit Structural Scanner > --- WEAPON (2) ------- Barrage Gun Barrage Gun > --- INVENTORY (25) --- Light Nuclear Core Light Nuclear Core Light Treads Light Treads Improved Heat Sink Improved Heat Sink Improved Heat Sink Medium Storage Unit Compact Matter Pod (150) Structural Scanner Advanced Visual Processing Unit Light Armor Plating Makeshift Light Armor Plating Hardlight Generator System Shield Improved Trap Extractor (0/6) Riot Gun Particle Gun Particle Gun Beam Cannon High-powered Shotgun Rocket Launcher Mining Laser Multitool Scythe Peak State ------------ > --- POWER ------------ Light Nuclear Core > --- PROPULSION ------- Spiked Treads Armored Treads > --- UTILITY ---------- Improved Heat Sink Huge Storage Unit Structural Scanner > --- WEAPON ----------- Barrage Gun Barrage Gun > --- INVENTORY -------- Light Nuclear Core Light Nuclear Core Light Treads Light Treads Improved Heat Sink Improved Heat Sink Improved Heat Sink Medium Storage Unit Compact Matter Pod Structural Scanner Advanced Visual Processing Unit Light Armor Plating Makeshift Light Armor Plating Hardlight Generator System Shield Improved Trap Extractor Riot Gun Particle Gun Particle Gun Beam Cannon High-powered Shotgun Grenade Launcher Rocket Launcher Mining Laser Scythe [Rating: 24] Favorites ----------- Power Light Nuclear Core Engine Ion Engine Power Core Light Nuclear Core Propulsion Light Treads Treads Light Treads Utility Structural Scanner Device Structural Scanner Storage Huge Storage Unit Processor Targeting Computer Weapon Particle Gun Energy Gun Particle Gun Ballistic Gun Barrage Gun Launcher Grenade Launcher Special Weapon Mining Laser Slashing Weapon Scythe Build | -11 -10 -10 -10 ------- Run | Yrd Mat Min Sub Slots Evolved 1 | . 1 . . Power . | . . . . Propulsion . | . . . . Utility 1 | . 1 . . Weapon . | . . . . Parts Attached 27 | 7 8 2 10 Power 3 | 1 1 . 1 Engine 1 | 1 . . . Core 2 | . 1 . 1 Reactor . | . . . . Propulsion 6 | 2 . . 4 Treads 6 | 2 . . 4 Leg . | . . . . Wheel . | . . . . Hover . | . . . . Flight . | . . . . Utility 8 | 2 3 2 1 Device 4 | . 2 1 1 Storage 2 | 1 . 1 . Processor 2 | 1 1 . . Hackware . | . . . . Protection . | . . . . Artifact . | . . . . Weapon 10 | 2 4 . 4 Energy Gun 2 | . 2 . . Energy Cannon . | . . . . Ballistic Gun 4 | 2 . . 2 Ballistic Cannon . | . . . . Launcher 2 | . 1 . 1 Special Weapon 1 | . 1 . . Impact Weapon . | . . . . Slashing Weapon 1 | . . . 1 Piercing Weapon . | . . . . Special Melee Weapon . | . . . . Unidentified Prototypes . | . . . . Parts Lost 7 | . . . 7 Power 2 | . . . 2 Propulsion 3 | . . . 3 Utility 2 | . . . 2 Weapon . | . . . . Highest Loss Streak 2 | . . . 2 To Critical Strikes 1 | . . . 1 Average Backups 21 | 2 6 19 24 Power 1 | . . 1 2 Propulsion 1 | . . 2 2 Utility 10 | 1 2 9 11 Weapon 6 | . 3 5 7 Tool/Special . | . . . . Unused Backups 17 | . . . 17 Power 2 | . . . 2 Propulsion . | . . . . Utility 10 | . . . 10 Weapon 4 | . . . 4 Tool/Special 1 | . . . 1 Average Slot Usage (%) 87 | . 96 100 81 Core 6 | . 2 12 5 Treads 20 | . 25 25 18 Device 20 | . 12 25 20 Storage 12 | . 12 12 12 Energy Gun 12 | . 6 25 9 Ballistic Gun 8 | . 11 . 10 Slashing Weapon 3 | . . . 4 Peak Build Rating 24 | 7 15 17 24 Average Rating 16 | 5 9 16 17 On Entrance 9 | . 7 15 17 Avg Prop Armor Cover (%) . | . . . . Naked Turns . | . . . . Heaviest Build 93 | 17 23 93 93 Greatest Support 40 | 40 40 40 40 Greatest Overweight (x) 28 | . . 2 28 Average Overweight (x) 2 | . . 1 3 Largest Inventory Capacity 25 | 10 10 25 25 Average Capacity 22 | 8 10 23 25 Most Carried 25 | 5 10 22 25 Average Carried 21 | 2 6 19 24 Final Capacity 25 | 10 10 25 25 Final Carried 25 | 3 9 22 25 Class Distribution -------------------- 100% | Hacker-Mutant Dominant Class ---------------- Hacker-Mutant | -10/Materials Hacker-Mutant | -10/Mines Hacker-Mutant | -10/Subcaves Resources | -11 -10 -10 -10 ----------- Run | Yrd Mat Min Sub Matter Collected 1203 | 285 154 180 584 Remotely . | . . . . Salvage Created 1462 | 103 396 299 664 Parts 101 | 8 30 12 51 Haulers Intercepted . | . . . . Recyclers Shooed 3 | . 2 1 . Parts Field Recycled . | . . . . Retrieved Matter . | . . . . Parts Self-Destructed . | . . . . Prevented . | . . . . Parts Restored . | . . . . Kills | -11 -10 -10 -10 ------- Run | Yrd Mat Min Sub Combat Hostiles Destroyed 29 | . 6 6 17 Melee 1 | . . . 1 Guns 26 | . 6 4 16 AOE 2 | . . 2 . Classes Destroyed 11 | 2 3 2 4 Worker 1 | . . 1 . Builder 3 | . 3 . . Tunneler 2 | 2 . . . Recycler 3 | 1 1 1 . Turret 2 | . . . 2 Watcher 2 | . 2 . . Swarmer 6 | . . 2 4 Grunt 10 | . 6 4 . Sentry 1 | . . . 1 Artisan 1 | . . . 1 Subdweller 12 | . . . 12 Best Kill Streak 5 | 3 2 2 5 Combat Bots Only 2 | . 2 2 2 Max Kills in Single Turn 2 | 1 2 2 1 Gunslinging . | . . . . Exploded 2 | . . 2 . Melee 1 | . . . 1 Uniques/NPCs Destroyed . | . . . . Combat | -11 -10 -10 -10 -------- Run | Yrd Mat Min Sub Hostile Shots Fired 265 | . 50 24 191 Missed 89 | . 16 10 63 Hits 176 | . 34 14 128 Projectile 176 | . 34 14 128 Critical Strikes 3 | . 1 . 2 Damage Taken 1350 | . 264 106 980 Core 253 | . 31 6 216 Absorbed by Shields . | . . . . Ignored by Resistances 858 | . 166 68 624 Core Remaining (%) 100 | 100 . . . Volleys Fired 173 | 10 57 18 88 Largest 2 | 2 2 2 2 Hottest 130 | 40 130 130 130 Shots Fired 292 | 15 79 36 162 Gun 284 | 15 77 36 156 Cannon . | . . . . Launcher 8 | . 2 . 6 Special . | . . . . Kinetic 201 | 15 64 . 122 Thermal 83 | . 13 36 34 Explosive 8 | . 2 . 6 Electromagnetic . | . . . . Robot Hit Streak 44 | 13 26 44 32 Robot Miss Streak 2 | . 2 1 1 Penetration Max . | . . . . Secondary Targets 1 | . . . 1 Max Gunslinging Chain 1 | . . . 1 Shots Hit Robots 219 | 13 67 28 111 Core Hits 81 | 7 27 11 36 Critical Kills 1 | . 1 . . Critical Parts Destroyed . | . . . . Critical Strikes 4 | . 1 3 . Burn 3 | . . 3 . Destroy 1 | . 1 . . Melee Attacks 10 | . . . 10 Impact . | . . . . Slashing 10 | . . . 10 Piercing . | . . . . Sneak Attacks . | . . . . Combat Hostiles . | . . . . Follow-up Attacks . | . . . . Damage Inflicted 3169 | 100 708 506 1855 Guns 2848 | 100 641 445 1662 Cannons . | . . . . Explosions 257 | . 64 61 132 Melee 61 | . . . 61 Ramming 3 | . 3 . . Kinetic 1750 | 100 452 . 1198 Thermal 1159 | . 189 506 464 Explosive 196 | . 64 . 132 Electromagnetic . | . . . . Impact . | . . . . Slashing 61 | . . . 61 Piercing . | . . . . Highest Corruption . | . . . . Average Corruption . | . . . . Corruption Purged . | . . . . Corruption Blocked . | . . . . Overload Shots . | . . . . Overflow Damage . | . . . . Projectiles . | . . . . Explosions . | . . . . Melee . | . . . . Knockbacks . | . . . . Impact . | . . . . Kinetic . | . . . . Secondary . | . . . . Self-Inflicted Damage . | . . . . Shots . | . . . . Rammed 1 | . 1 . . Targets Rammed 1 | . 1 . . Kicked . | . . . . Crushed . | . . . . Highest Temperature 359 | . 186 359 204 Average Temperature 105 | . 48 139 88 Received Heat Transfer 732 | . 258 84 390 Effects 3 | . . . 3 Interference 3 | . . . 3 Siege Activations . | . . . . Martial Activations . | . . . . Shielding Activations . | . . . . Robots Disrupted . | . . . . Combat Hostiles . | . . . . Robots Corrupted . | . . . . Combat Hostiles . | . . . . Parts Fried . | . . . . Impact Corruptions . | . . . . Robots Melted . | . . . . Combat Hostiles . | . . . . Parts Melted 2 | . . 2 . Heat Transferred 2912 | . 444 1358 1110 Parts Sabotaged . | . . . . Parts Stolen . | . . . . Parts Stripped . | . . . . Power Chain Reactions . | . . . . Alert | -11 -10 -10 -10 ------- Run | Yrd Mat Min Sub Maximum Alert Level . | . . . . Low Security (%) 100 | 100 100 100 . Level 1 . | . . . . Level 2 . | . . . . Level 3 . | . . . . Level 4 . | . . . . Level 5 . | . . . . High Security . | . . . . Max Security . | . . . . Peak Influence 68 | 15 50 68 . Initial 2 | . . 2 . Average 5 | 1 10 4 . Influence Increases 656 | 15 233 193 215 Destroy 0b10 Robot/C 380 | . 120 120 140 Destroy 0b10 Robot/NC 55 | 15 30 10 . Destroy Leader 64 | . 34 30 . Successful Hack 9 | . 9 . . Disable Machine 4 | . . 4 . Destroy Structure 39 | . 25 14 . Lose Combat Pursuer 105 | . 15 15 75 Influence Decreases 656 | 15 225 201 215 Entered New Map 6 | . . 6 . Time Decay 650 | 15 225 195 215 Squads Dispatched . | . . . . Investigation . | . . . . Extermination . | . . . . Reinforcement . | . . . . Assault . | . . . . Garrison . | . . . . Intercept . | . . . . Searches Triggered . | . . . . Construction Impeded . | . . . . Haulers Reinforced . | . . . . Active Scanning Responses . | . . . . Cargo Convoy Interrupts . | . . . . Stealth | -11 -10 -10 -10 --------- Run | Yrd Mat Min Sub Distress Signals 1 | . 1 . . Communications Jammed . | . . . . Distress Signals . | . . . . Times Spotted 46 | . 12 7 27 Peak Tracking Total 6 | . 3 2 6 Tactical Retreats 3 | . 1 1 1 Traps | -11 -10 -10 -10 ------- Run | Yrd Mat Min Sub Traps Triggered . | . . . . Indirectly . | . . . . Trap Hack Attempts . | . . . . Triggered . | . . . . Disarmed . | . . . . Reprogrammed . | . . . . Reused . | . . . . Traps Extracted . | . . . . Installed . | . . . . Triggered . | . . . . Machines | -11 -10 -10 -10 ---------- Run | Yrd Mat Min Sub Machines Disabled 4 | . . 1 3 Max in Single Turn 3 | . . 1 3 Machines Repaired . | . . . . Machines Dismantled . | . . . . Machines Sabotaged . | . . . . Overloaded Fab Kills . | . . . . Hacking | -11 -10 -10 -10 --------- Run | Yrd Mat Min Sub Machines Accessed 4 | . 2 1 1 Terminals 2 | . 2 . . Fabricators . | . . . . Repair Stations . | . . . . Recycling Units . | . . . . Scanalyzers . | . . . . Garrison Access . | . . . . Total Hacks 14 | . 8 1 5 Successful 14 | . 8 1 5 Failed . | . . . . Catastrophic . | . . . . Database Lockouts . | . . . . Manual 8 | . 8 . . Terminals 8 | . 8 . . Fabricators . | . . . . Repair Stations . | . . . . Recycling Units . | . . . . Scanalyzers . | . . . . Garrison Access . | . . . . Terminal Hacks 12 | . 6 1 5 Record 5 | . . . 5 Prototype ID Bank 6 | . 6 . . Open Door 1 | . . 1 . Fabricator Hacks . | . . . . Repair Station Hacks . | . . . . Recycling Unit Hacks . | . . . . Scanalyzer . | . . . . Garrison Access Hacks . | . . . . Unauthorized Hacks 2 | . 2 . . Terminals 2 | . 2 . . Botnet 2 | . 2 . . Fabricators . | . . . . Repair Stations . | . . . . Recycling Units . | . . . . Scanalyzers . | . . . . Garrison Access . | . . . . Data Cores Recovered . | . . . . Used . | . . . . Hacking Detections 2 | . 2 . . Full Trace Events . | . . . . Feedback Events . | . . . . Feedback Blocked . | . . . . Robot Schematics Acquired . | . . . . Robots Built . | . . . . Authchips . | . . . . Time . | . . . . Total Robot Build Rating . | . . . . Part Schematics Acquired . | . . . . Parts Built . | . . . . Authchips . | . . . . Time . | . . . . Total Part Build Rating . | . . . . Part Studies Acquired . | . . . . Parts Repaired . | . . . . Time . | . . . . Parts Recycled . | . . . . Recycled Matter . | . . . . Retrieved Matter . | . . . . Retrieved Components . | . . . . Parts Scanalyzed . | . . . . Part Schematics Acquired . | . . . . Parts Damaged . | . . . . Bothacking | -11 -10 -10 -10 ------------ Run | Yrd Mat Min Sub Used RIF Installer . | . . . . Robots Hacked . | . . . . Non-combat . | . . . . Combat . | . . . . Robot Hacks Applied . | . . . . Relay Couplers Released . | . . . . Fabnet Peak Effective % . | . . . . Robots Rewired . | . . . . Allies Hacked . | . . . . Hacks Repelled . | . . . . Allies | -11 -10 -10 -10 -------- Run | Yrd Mat Min Sub Total Allies . | . . . . Largest Group . | . . . . Highest-Rated Group . | . . . . Highest-Rated Ally . | . . . . Total Orders . | . . . . Ally Attacks . | . . . . Total Damage . | . . . . Kills . | . . . . Allies Corrupted . | . . . . Allies Melted . | . . . . Intel | -11 -10 -10 -10 ------- Run | Yrd Mat Min Sub Active Infowar (turns) 7216 | . 582 1649 4985 Optics 230 | . 230 . . Sensors 4391 | . . 1472 2919 Structural 7216 | . 582 1649 4985 Robot Analysis Total . | . . . . Derelict Logs Recovered 2 | . . 1 1 Drone Launches . | . . . . Drone Recoveries . | . . . . Exploration | -11 -10 -10 -10 ------------- Run | Yrd Mat Min Sub Turns Passed 7428 | 115 679 1649 4985 Spaces Moved 1976 | 63 324 557 1032 Core 44 | 25 . . 19 Treads 1932 | 38 324 557 1013 Legs . | . . . . Wheels . | . . . . Hover . | . . . . Flight . | . . . . Fastest Speed 50 | 50 160 160 320 Average Speed 326 | 116 160 282 416 Slowest Speed 1450 | 160 160 320 1450 Overloaded Moves . | . . . . Propulsion Burnouts . | . . . . Robots Hopped . | . . . . Potential Cave-ins . | . . . . Cave-ins Triggered . | . . . . Exploration Rate (%) 56 | 4 66 93 63 Regions Visited 3 Branch Regions 2 Pre-discovered Areas 1 | . . . 1 Known Exits Taken 3 | 1 1 1 . Unknown Exits Taken . | . . . . Scrap Searched 13 | . . 1 12 Spaces Dug 1 | . . . 1 Terrain Destroyed 69 | . 20 14 35 Melee . | . . . . Projectile 2 | . . . 2 AOE 67 | . 20 14 33 Terrain Rammed . | . . . . Walls Destroyed . | . . . . Machines Disabled . | . . . . Actions | -11 -10 -10 -10 --------- Run | Yrd Mat Min Sub Total 2666 | 91 420 599 1556 Wait 432 | 5 17 6 404 Move 1973 | 62 323 556 1032 Hop . | . . . . Pick Up 38 | 7 8 15 8 Fast Attach 6 | 3 1 . 2 Attach 11 | 4 5 . 2 Detach 5 | . 5 . . Swap 11 | . 2 2 7 Drop 6 | . 1 2 3 Fire 173 | 10 57 18 88 Melee 10 | . . . 10 Ram . | . . . . Kick . | . . . . Crush 1 | . 1 . . Escape Stasis . | . . . . Rewire . | . . . . Trap . | . . . . Miscellaneous . | . . . . Route ------- -11/Scrapyard -10/Materials (discovered 2 exits: *Mat / *Min) -10/Mines (discovered 3 exits: *Mat x2 / *Sub) -10/Subcaves (discovered 3 exits: *Mat x2 / *Rec) History --------- Turn | Location | Event 29 | -11/Scrapyard | Identified exit to Materials 29 | -11/Scrapyard | Discovered exit to Materials (range 15) 116 | -11/Scrapyard | Entered Materials 116 | -10/Materials | Evolved 1 slot: Utility x1 307 | -10/Materials | Build established: Hacker-Mutant 518 | -10/Materials | Identified exit to Materials 518 | -10/Materials | Discovered exit to Materials (range 16) 782 | -10/Materials | Identified exit to Mines 782 | -10/Materials | Discovered exit to Mines (range 8) 795 | -10/Materials | Entered Mines 894 | -10/Mines | Discovered exit to Materials (range 6) 941 | -10/Mines | Received a Rocket Launcher from a helpful Derelict 999 | -10/Mines | Met a Derelict who couldn't figure out how to use a Trap Extractor 1207 | -10/Mines | Found a hidden stash of uninstalled traps 2422 | -10/Mines | Identified exit to Subcaves 2422 | -10/Mines | Discovered exit to Subcaves (range 6) 2444 | -10/Mines | Entered Subcaves 2445 | -10/Subcaves | Approached by a straggling Scientist 2504 | -10/Subcaves | Learned location of Zion (-6) 2504 | -10/Subcaves | Met a Zionite searching for "candidates" 2569 | -10/Subcaves | Visited Clippyterm 2579 | -10/Subcaves | Learned 40 Factory zone layouts 2579 | -10/Subcaves | Learned Factory emergency access door positions 4771 | -10/Subcaves | Learned Materials security intel 5362 | -10/Subcaves | Identified exit to Recycling 5362 | -10/Subcaves | Discovered exit to Recycling (range 11) 5855 | -10/Subcaves | A swath of the cavern ceiling suddenly collapsed 6107 | -10/Subcaves | Identified exit to Materials 6107 | -10/Subcaves | Discovered exit to Materials (range 4) 6207 | -10/Subcaves | A swath of the cavern ceiling suddenly collapsed 6318 | -10/Subcaves | Ambushed by angry Subdweller bent on revenge 6333 | -10/Subcaves | Core integrity fell below 50% 7167 | -10/Subcaves | Discovered exit to Materials (range 13) 7345 | -10/Subcaves | Core integrity fell below 20% 7429 | -10/Subcaves | Destroyed by R8-XYF(R) with Subdweller Beam Cannon Last Messages --------------- 07168_ Lgt. Nuclear Core destroyed. 07171_ U1-73C(R) destroyed. K0-46W(c): "I think it's somewhere north of here" 07228_ Acquired 37 matter. 07231_ Subatomizers dissect the Sub. Optics. 07233_ Acquired 4 matter. K0-46W(c): "I think it's somewhere north of here" 07246_ Subatomizers dissect the Sub. Optics. K0-46W(c): "I think it's somewhere north of here" 07296_ Subatomizers dissect the Sub. Optics. K0-46W(c): "I think it's somewhere northwest of here" 07355_ CV-CON(R) destroyed. 07367_ Acquired 41 matter. K0-46W(c): "I think it's somewhere northwest of here" Map ----- +----------------------------------------------------+ | ???????????????????????????????????????????? | | ???????????????????????????????????????????? | | ???????????????????????????????????????????? | | ???????????????????????????????????????????? | | ???????????????????????????????????????????? | | ???????????????????????????????????????????? | | ???????????????????????????????????????????? | | ???????????????????????????????????????????? | | ???????????????????????????????????????????? | | ???????????????????????????????????????????? | | ???????????????????????????????????????????? | | ???????????????????????????????????????????? | | ???????????????????????????????????????????? | | ???????????????????????????????????????????? | | ???????????????????????????????????????????? | | ?????????????????????? ????????????????????? | | ????????????????????? ???????????????????? | | ????????????????????? "??????????????????? | | ??????????????????????"""??????????????????? | | ????????????????????" ??????????????????? | | ???????????????????"## ??????????????????? | | ???????????????????## ??????????????????? | | ???????????????????## ###??????????????? | | ??????????????????### #####?????????????? | | ##???????????????????## "R ###?????????????? | | ###??????????????????##" @ ###????????????? | | ######### ###????????### c ###????????????? | | ############# ??????### ""##????????????? | | ####"### ###"???????### "####????????????? | | " " "??????#### "####????????????? | | " " ##???""####"" ##??????????????? | | " " ######?"####" !"##??????????????? | | ""#########""""###" ""##??????????????? | | ## # # ## ##" "####/""##??????????????? | | ### ""#####!""##??????????????? | | #### ""#### "##??????????????? | | ##### #### # ## "#### ###??????????????? | | ######## #### ### ###??????????????? | | ######## #### ### ##??????????????? | | ######## ##### ##??????????????? | | ######## """"## ##??????????????? | | ### #### "" "##### ###??????????????? | | ####"" #### ###??????????????? | | #####"" #### ###??????????????? | | #####" &[ # ## ##??????????????? | | ### &%*! ##??????????????? | | ## < *& & ##??????????????? | | ## ## !&= #########??????????????? | | ## # ### ##########??????????????? | | ### ### ###?????????????????????? | +----------------------------------------------------+ Best States ------------- Heat Dissipation 39 Energy Generation 14 Energy Capacity 250 Matter Stores 300 Matter Capacity 300 Sight Range 18 Robot Scan Range 14 Terrain Scan Density 10 Resistance: KI 35 Resistance: TH 35 Resistance: EX 35 Resistance: EM 35 Resistance: I 35 Resistance: S 35 Resistance: P 35 Evasion (%) 50 Targeting Accuracy 5 Recoil Reduction 2 Offensive Hacking 20 Item Schematics ----------------- None Robot Schematics ------------------ None Fabricated ------------ Nothing Repaired ---------- Nothing Studied --------- None Alien Tech Used ----------------- None Achievements -------------- None Challenges ------------ None Game ------ Seed FieldPoweredJammer Manual? 0 Play Time 00:20:33 Cumulative 230.4 hours Start 2025.12.26 @ 13:26:20 End 2025.12.26 @ 13:43:00 Sessions 1 Manual Loads 0 Difficulty Explorer Special Mode None Game No. 358 Rogue 0 Adventurer 0 Explorer 358 Win Type - Total 0 Types 0/0/0/0/0/0/0/0/0/0 Lore% 71 Gallery% 68 Achievement% 54 Wizard Run 0 Options --------- Layout 1 ASCII 0 Keyboard 0 Movement Mouse Keybinds 0 Fullscreen 1 Font 24/Smallcaps Map View 50x35 Zoom Use 0% Tactical HUD 1 Map Filters NONE Filters NONE Steam 1 RUN: eed1e8b5-db4b-4855-90fc-52ed39d77e82